fUST/lending_fUST_20241120
["ID","MTS","AMOUNT","RATE_DAILY","PERIOD"]
[342714792,1732068639273,-151.0,0.00019341,2]
[342714794,1732068639283,-151.0,0.00019341,2]
[342714795,1732068639295,-151.0,0.00019341,2]
[342714797,1732068639306,-151.0,0.00019341,2]
[342714799,1732068639315,-151.0,0.00019341,2]
[342714802,1732068639325,-151.0,0.00019341,2]
[342714803,1732068639334,-151.0,0.00019341,2]
[342714804,1732068639343,-151.0,0.00019341,2]
[342714805,1732068639353,-173.039434,0.00019341,2]
[342714806,1732068639363,-173.039434,0.00019341,2]
[342714807,1732068639374,-173.039434,0.00019341,2]
[342714808,1732068639383,-173.039434,0.00019341,2]
[342714809,1732068639394,-500.0,0.00019343,2]
[342714810,1732068639407,-500.0,0.00019343,2]
[342714811,1732068639416,-503.52320172,0.00019371,2]
[342714812,1732068639425,-504.52735569,0.00019436,2]
[342714813,1732068639435,-586.571495,0.00019452,2]
[342714814,1732068639444,-586.571495,0.00019452,2]
[342714815,1732068639453,-216.9365553,0.00019452,2]
[342714816,1732068639462,-151.0,0.00019456,2]
[342714817,1732068639471,-151.0,0.00019456,2]
[342714818,1732068639480,-1172.718021,0.0001951,2]
[342714819,1732068639489,-586.571495,0.0001951,2]
[342714820,1732068639498,-586.571502,0.0001951,2]
[342714821,1732068639507,-151.0,0.00019518,2]
[342714822,1732068639517,-99.20468801,0.00019518,2]
[342714823,1732068639530,-51.79531199,0.00019518,2]
[342714824,1732068639539,-1142.84427939,0.00019518,2]
[342714840,1732068640840,-4936.72608882,0.00018,2]
[342714878,1732068672079,154.0,0.00022,30]
[342714880,1732068705884,154.0,0.00026,60]
[342714881,1732068828987,721.7333196,0.0001722,14]
[342714884,1732068945219,157.2,6.031e-05,2]
[342714886,1732069060716,158.64,0.00026,60]
[342714899,1732069730644,250.04789773,0.00026,120]
[342714948,1732069831976,-400.0,0.00013973,2]
[342714949,1732069831987,-62.43520924,0.00017233,14]
[342714964,1732069838008,-91.56479076,0.00017233,14]
[342714965,1732069838019,-602.49148378,0.00017488,2]
[342714966,1732069838030,-2942.805946,0.00017488,2]
[342714970,1732069838115,-6068.62735118,0.00017488,2]
[342714971,1732069838124,-614.36227871,0.00017718,2]
[342714991,1732069842938,-8999.56250225,0.00017718,2]
[342714993,1732069842950,-2078.89891118,0.00018,2]
[342714994,1732069842959,-3036.4330291,0.00018,2]
[342714996,1732069842971,-2907.875,0.00018,2]
[342715012,1732069845975,-453.0,0.00018,2]
[342715013,1732069845987,-466.00000002,0.00018,2]
[342715018,1732070537761,25089.42188857,0.00026,60]
[342715055,1732071032332,-380.0,0.00013973,2]
[342715056,1732071032342,-4985.9646382,0.00017704,2]
[342715057,1732071032352,-10501.53870802,0.00017796,2]
[342715058,1732071032361,-152.31697088,0.00018,2]
[342715059,1732071032371,-7015.625,0.00018,2]
[342715060,1732071032381,-161.513634,0.00019178,2]
[342715061,1732071032390,-2363.81139336,0.000195,2]
[342715062,1732071032399,-150.42990011,0.00019517,2]
[342715063,1732071032408,-1310.21378377,0.00019517,2]
[342715064,1732071032418,-763.760401,0.00019517,2]
[342715065,1732071032427,-763.760401,0.00019517,2]
[342715066,1732071032436,-154.0,0.00020027,27]
[342715067,1732071032446,-160.0,0.00020052,3]
[342715068,1732071032454,-763.760401,0.00020447,2]
[342715069,1732071032463,-763.760401,0.00020447,2]
[342715070,1732071032472,-380.0,0.00020447,2]
[342715071,1732071032481,-160.0,0.00020529,4]
[342715072,1732071032491,-514.79596827,0.00020998,3]
[342715073,1732071032500,-1000.0,0.00021,2]
[342715074,1732071032509,-497.0748592,0.00021,2]
[342715075,1732071032518,-160.0,0.00021005,5]
[342715076,1732071032528,-181.18331753,0.00021179,2]
[342715077,1732071032537,-1387.13,0.00021269,3]
[342715078,1732071032546,-1155.94,0.00021269,3]
[342715079,1732071032555,-577.97,0.00021269,3]
[342715080,1732071032564,-288.99,0.00021269,3]
[342715081,1732071032575,-151.0,0.00021269,2]
[342715082,1732071032585,-151.0,0.00021269,2]
[342715083,1732071032594,-866.97,0.00021269,3]
[342715084,1732071032603,-154.021445,0.00021269,2]
[342715085,1732071032612,-500.0,0.00021273,2]
[342715086,1732071032622,-570.30426256,0.00021273,2]
[342715087,1732071032631,-549.86546112,0.00021278,2]
[342715088,1732071032640,-181.09004326,0.00021278,2]
[342715089,1732071032649,-322.78281602,0.00021278,2]
[342715090,1732071032659,-500.0,0.00021278,2]
[342715091,1732071032668,-260.77387197,0.00021278,2]
[342715092,1732071032678,-160.0,0.00021278,2]
[342715093,1732071032687,-151.0,0.00021278,2]
[342715094,1732071032696,-250000.0,0.00021279,2]
[342715095,1732071032705,-42003.92747514,0.00021279,2]
[342715096,1732071032714,-763.760401,0.00021279,2]
[342715097,1732071032724,-763.760401,0.00021279,2]
[342715098,1732071032733,-151.0,0.00021279,2]
[342715099,1732071032742,-151.0,0.00021279,2]
[342715100,1732071032752,-151.0,0.00021279,2]
[342715101,1732071032762,-151.0,0.00021279,2]
[342715102,1732071032771,-153.9051493,0.0002137,2]
[342715103,1732071032780,-153.0,0.0002137,2]
[342715104,1732071032790,-153.0,0.0002137,2]
[342715105,1732071032799,-763.760401,0.00021379,2]
[342715106,1732071032808,-763.760401,0.00021379,2]
[342715107,1732071032817,-160.0,0.00021482,6]
[342715108,1732071032828,-3000.0,0.000217,2]
[342715109,1732071032837,-151.0,0.000217,2]
[342715110,1732071032847,-151.0,0.000217,2]
[342715111,1732071032856,-3000.0,0.0002171,2]
[342715112,1732071033004,-763.760401,0.0002171,2]
[342715113,1732071033014,-763.760401,0.0002171,2]
[342715114,1732071033024,-3000.0,0.0002172,2]
[342715115,1732071033033,-151.0,0.0002172,2]
[342715116,1732071033045,-151.0,0.0002172,2]
[342715117,1732071033054,-3000.0,0.0002173,2]
[342715118,1732071033064,-763.760401,0.0002173,2]
[342715119,1732071033076,-763.760401,0.0002173,2]
[342715120,1732071033088,-3000.0,0.0002174,2]
[342715121,1732071033099,-3000.0,0.0002175,2]
[342715122,1732071033109,-3000.0,0.0002176,2]
[342715123,1732071033119,-763.760401,0.0002176,2]
[342715124,1732071033129,-763.760401,0.0002176,2]
[342715125,1732071033139,-3000.0,0.0002177,2]
[342715126,1732071033149,-3000.0,0.0002178,2]
[342715127,1732071033159,-3770.447723,0.0002179,2]
[342715128,1732071033169,-763.760401,0.0002179,2]
[342715129,1732071033178,-763.760401,0.0002179,2]
[342715130,1732071033187,-1284.70665393,0.000218,7]
[342715131,1732071033196,-1000.0,0.00021817,2]
[342715132,1732071033206,-1000.0,0.00021821,2]
[342715133,1732071033216,-162.03666646,0.00021916,2]
[342715134,1732071033225,-532.60242941,0.00021917,7]
[342715135,1732071033234,-294.81868248,0.00021917,7]
[342715136,1732071033244,-536.93415689,0.00021917,7]
[342715137,1732071033253,-500.87853552,0.00021917,7]
[342715138,1732071033263,-501.6488802,0.00021917,7]
[342715139,1732071033272,-500.95631742,0.00021917,7]
[342715140,1732071033282,-500.0,0.00021917,7]
[342715141,1732071033291,-500.0,0.00021917,7]
[342715142,1732071033300,-512.34546869,0.00021917,7]
[342715143,1732071033310,-500.0,0.00021917,7]
[342715144,1732071033319,-505.22064838,0.00021917,7]
[342715145,1732071033329,-500.0,0.00021917,7]
[342715146,1732071033339,-506.52944845,0.00021917,7]
[342715147,1732071033348,-500.0,0.00021917,7]
[342715148,1732071033358,-178.51121019,0.00021917,7]
[342715149,1732071033367,-532.42330893,0.00021917,7]
[342715150,1732071033377,-508.34340004,0.00021917,7]
[342715151,1732071033387,-641.10245209,0.00021917,7]
[342715152,1732071033396,-429.75880479,0.00021917,7]
[342715153,1732071033406,-500.0,0.00021917,7]
[342715154,1732071033416,-432.91024983,0.00021917,7]
[342715155,1732071033426,-500.0,0.00021917,7]
[342715156,1732071033435,-528.46360992,0.00021917,7]
[342715157,1732071033443,-500.0,0.00021917,7]
[342715158,1732071033453,-151.95437233,0.00021917,7]
[342715159,1732071033463,-1000.0,0.00021917,2]
[342715160,1732071033472,-502.73284749,0.00021917,7]
[342715161,1732071033482,-500.0,0.00021917,7]
[342715162,1732071033492,-500.0,0.00021917,7]
[342715163,1732071033501,-643.28986556,0.00021917,7]
[342715164,1732071033511,-501.75683811,0.00021917,7]
[342715165,1732071033521,-500.0,0.00021917,7]
[342715166,1732071033531,-500.0,0.00021917,7]
[342715167,1732071033540,-500.0,0.00021917,7]
[342715168,1732071033550,-500.0,0.00021917,7]
[342715169,1732071033559,-501.69203222,0.00021917,7]
[342715170,1732071033568,-500.0,0.00021917,7]
[342715171,1732071033581,-507.54386236,0.00021917,7]
[342715172,1732071033590,-502.08709291,0.00021917,7]
[342715173,1732071033600,-511.59223691,0.00021917,7]
[342715174,1732071033609,-500.0,0.00021917,7]
[342715175,1732071033619,-508.21361671,0.00021917,7]
[342715176,1732071033628,-500.0,0.00021917,7]
[342715177,1732071033638,-500.0,0.00021917,7]
[342715178,1732071033647,-500.0,0.00021917,7]
[342715179,1732071033658,-500.0,0.00021917,7]
[342715180,1732071033667,-526.63697415,0.00021917,7]
[342715181,1732071033677,-500.0,0.00021917,7]
[342715182,1732071033686,-500.0,0.00021917,7]
[342715183,1732071033696,-492.14925231,0.00021917,7]
[342715184,1732071033706,-511.7225644,0.00021917,7]
[342715185,1732071033715,-500.0,0.00021917,7]
[342715186,1732071033725,-500.0,0.00021917,7]
[342715187,1732071033735,-521.66814432,0.00021917,7]
[342715188,1732071033745,-500.0,0.00021917,7]
[342715189,1732071033755,-500.0,0.00021917,7]
[342715190,1732071033765,-522.24162534,0.00021917,7]
[342715191,1732071033775,-515.48016729,0.00021917,7]
[342715192,1732071033785,-361.98293058,0.00021917,7]
[342715193,1732071033795,-500.0,0.00021917,7]
[342715194,1732071033804,-763.760401,0.00021917,2]
[342715195,1732071033814,-763.760401,0.00021917,2]
[342715196,1732071033824,-763.760401,0.00021917,2]
[342715197,1732071033834,-763.76039642,0.00021917,2]
[342715198,1732071033844,-508.00984421,0.00021917,7]
[342715199,1732071033853,-502.20270131,0.00021917,7]
[342715200,1732071033863,-501.54358747,0.00021917,7]
[342715201,1732071033873,-500.0,0.00021917,7]
[342715202,1732071033883,-501.41772961,0.00021917,7]
[342715203,1732071033892,-504.93922931,0.00021917,7]
[342715204,1732071033902,-505.78451252,0.00021917,7]
[342715205,1732071033912,-508.54025157,0.00021917,7]
[342715206,1732071033922,-525.49227046,0.00021917,7]
[342715207,1732071033933,-500.0,0.00021917,7]
[342715208,1732071033943,-549.91576932,0.00021917,7]
[342715209,1732071033953,-284.754827,0.00021917,2]
[342715210,1732071033964,-500.0,0.00021917,7]
[342715211,1732071033977,-535.53235314,0.00021917,7]
[342715212,1732071033987,-500.0,0.00021917,7]
[342715213,1732071033997,-500.0,0.00021917,7]
[342715214,1732071034008,-500.0,0.00021917,7]
[342715215,1732071034017,-501.40249512,0.00021917,7]
[342715216,1732071034027,-502.99663353,0.00021917,7]
[342715217,1732071034037,-507.2622992,0.00021917,7]
[342715218,1732071034048,-512.00575103,0.00021917,7]
[342715219,1732071034058,-500.0,0.00021917,7]
[342715220,1732071034068,-502.45297603,0.00021917,7]
[342715221,1732071034081,-642.75835517,0.00021917,7]
[342715222,1732071034091,-648.35985709,0.00021917,7]
[342715223,1732071034100,-500.0,0.00021917,7]
[342715224,1732071034110,-500.0,0.00021917,7]
[342715225,1732071034119,-503.66667963,0.00021917,7]
[342715226,1732071034129,-500.0,0.00021917,7]
[342715227,1732071034139,-500.0,0.00021917,7]
[342715228,1732071034149,-505.04440643,0.00021917,7]
[342715229,1732071034159,-500.0,0.00021917,7]
[342715230,1732071034169,-485.30800677,0.00021917,7]
[342715231,1732071034179,-508.13224147,0.00021917,7]
[342715232,1732071034189,-501.96078435,0.00021917,7]
[342715233,1732071034199,-507.24178337,0.00021917,7]
[342715234,1732071034208,-514.64507183,0.00021917,7]
[342715235,1732071034218,-500.0,0.00021917,7]
[342715236,1732071034227,-503.37081765,0.00021917,7]
[342715237,1732071034237,-501.28444416,0.00021917,7]
[342715238,1732071034247,-215.52838151,0.00021917,7]
[342715239,1732071034256,-511.23970147,0.00021917,7]
[342715240,1732071034266,-509.43956433,0.00021917,7]
[342715241,1732071034275,-169.63370158,0.00021917,7]
[342715242,1732071034285,-500.0,0.00021917,7]
[342715243,1732071034295,-500.0,0.00021917,7]
[342715244,1732071034305,-1061.15,0.00021917,7]
[342715245,1732071034315,-511.19884195,0.00021917,7]
[342715246,1732071034327,-500.0,0.00021917,7]
[342715247,1732071034336,-500.0,0.00021917,7]
[342715248,1732071034347,-502.06418706,0.00021917,7]
[342715249,1732071034357,-500.64299032,0.00021917,7]
[342715250,1732071034366,-505.23187475,0.00021917,7]
[342715251,1732071034376,-500.0,0.00021917,7]
[342715252,1732071034385,-500.0,0.00021917,7]
[342715253,1732071034395,-500.0,0.00021917,7]
[342715254,1732071034405,-500.0,0.00021917,7]
[342715255,1732071034414,-503.1939732,0.00021917,7]
[342715256,1732071034423,-150.15726646,0.00021917,7]
[342715257,1732071034433,-503.38433983,0.00021917,7]
[342715258,1732071034442,-500.0,0.00021917,7]
[342715259,1732071034453,-500.0,0.00021917,7]
[342715260,1732071034462,-500.0,0.00021917,7]
[342715261,1732071034472,-509.0562501,0.00021917,7]
[342715262,1732071034481,-508.29726103,0.00021917,7]
[342715263,1732071034491,-504.0365233,0.00021917,7]
[342715264,1732071034501,-500.0,0.00021917,7]
[342715265,1732071034511,-500.0,0.00021917,7]
[342715266,1732071034520,-502.83200536,0.00021917,7]
[342715267,1732071034530,-500.0,0.00021917,7]
[342715268,1732071034540,-287.64660135,0.00021917,7]
[342715269,1732071034550,-503.12538489,0.00021917,7]
[342715270,1732071034559,-500.0,0.00021917,7]
[342715271,1732071034569,-506.47909846,0.00021917,7]
[342715272,1732071034580,-502.43907316,0.00021917,7]
[342715273,1732071034590,-300.35045941,0.00021917,7]
[342715274,1732071034599,-500.0,0.00021917,7]
[342715275,1732071034609,-500.0,0.00021917,7]
[342715276,1732071034618,-502.4882465,0.00021917,7]
[342715277,1732071034627,-500.0,0.00021917,7]
[342715278,1732071034638,-379.12246743,0.00021917,7]
[342715279,1732071034647,-505.35101667,0.00021917,7]
[342715280,1732071034657,-325.14886673,0.00021917,7]
[342715281,1732071034666,-526.62403164,0.00021917,7]
[342715282,1732071034675,-577.45,0.00021917,7]
[342715283,1732071034685,-500.0,0.00021917,7]
[342715284,1732071034695,-502.71704914,0.00021917,7]
[342715285,1732071034705,-500.0,0.00021917,7]
[342715286,1732071034714,-502.90502346,0.00021917,7]
[342715287,1732071034723,-504.19928543,0.00021917,7]
[342715288,1732071034733,-500.0,0.00021917,7]
[342715289,1732071034743,-500.0,0.00021917,7]
[342715290,1732071034752,-500.0,0.00021917,7]
[342715291,1732071034762,-505.40803402,0.00021917,7]
[342715292,1732071034772,-500.0,0.00021917,7]
[342715293,1732071034782,-506.28991783,0.00021917,7]
[342715294,1732071034791,-500.0,0.00021917,7]
[342715295,1732071034801,-500.0,0.00021917,7]
[342715296,1732071034810,-523.7815403,0.00021917,7]
[342715297,1732071034820,-500.0,0.00021917,7]
[342715298,1732071034831,-500.0,0.00021917,7]
[342715299,1732071034839,-500.0,0.00021917,7]
[342715300,1732071034848,-503.54101193,0.00021917,7]
[342715301,1732071034858,-502.69127388,0.00021917,7]
[342715302,1732071034868,-500.0,0.00021917,7]
[342715303,1732071034878,-500.0,0.00021917,7]
[342715304,1732071034888,-500.0,0.00021917,7]
[342715305,1732071034900,-508.816455,0.00021917,7]
[342715306,1732071034910,-503.82183198,0.00021917,7]
[342715307,1732071034920,-500.0,0.00021917,7]
[342715308,1732071034930,-500.0,0.00021917,7]
[342715309,1732071034940,-500.0,0.00021917,7]
[342715310,1732071034949,-514.13058704,0.00021917,7]
[342715311,1732071034959,-500.0,0.00021917,7]
[342715312,1732071034973,-500.0,0.00021917,7]
[342715313,1732071034984,-500.0,0.00021917,7]
[342715314,1732071034994,-500.0,0.00021917,7]
[342715315,1732071035003,-500.0,0.00021917,7]
[342715316,1732071035014,-500.0,0.00021917,7]
[342715317,1732071035025,-500.0,0.00021917,7]
[342715318,1732071035034,-500.0,0.00021917,7]
[342715319,1732071035046,-500.0,0.00021917,7]
[342715320,1732071035057,-500.0,0.00021917,7]
[342715321,1732071035067,-511.64166127,0.00021917,7]
[342715322,1732071035077,-500.0,0.00021917,7]
[342715323,1732071035087,-246.56374062,0.00021917,7]
[342715324,1732071035097,-500.0,0.00021917,7]
[342715325,1732071035107,-500.0,0.00021917,7]
[342715326,1732071035116,-512.26350102,0.00021917,7]
[342715327,1732071035126,-151.8303157,0.00021917,7]
[342715328,1732071035135,-500.0,0.00021917,7]
[342715329,1732071035145,-500.0,0.00021917,7]
[342715330,1732071035154,-506.74322833,0.00021917,7]
[342715331,1732071035163,-500.0,0.00021917,7]
[342715332,1732071035169,-500.0,0.00021917,7]
[342715333,1732071035177,-500.0,0.00021917,7]
[342715334,1732071035186,-502.12838665,0.00021917,7]
[342715335,1732071035196,-508.11673505,0.00021917,7]
[342715336,1732071035205,-2512.49,0.00021917,7]
[342715337,1732071035215,-278.6154323,0.00021917,7]
[342715338,1732071035224,-500.0,0.00021917,7]
[342715339,1732071035234,-614.73058966,0.00021917,7]
[342715340,1732071035243,-548.32549819,0.00021917,7]
[342715341,1732071035253,-2418.82,0.00021917,7]
[342715342,1732071035263,-505.97581033,0.00021917,7]
[342715343,1732071035272,-500.0,0.00021917,7]
[342715344,1732071035283,-507.76501218,0.00021917,7]
[342715345,1732071035292,-500.0,0.00021917,7]
[342715346,1732071035302,-511.0,0.00021917,7]
[342715347,1732071035312,-500.0,0.00021917,7]
[342715348,1732071035323,-500.0,0.00021917,7]
[342715349,1732071035333,-150.34034054,0.00021917,7]
[342715350,1732071035343,-150.16615526,0.00021918,7]
[342715351,1732071035352,-160.0,0.00021959,7]
[342715352,1732071035361,-260.46644326,0.00021959,5]
[342715353,1732071035370,-500.0,0.00021973,2]
[342715354,1732071035379,-255.0,0.00022,2]
[342715355,1732071035388,-159.0,0.00022,2]
[342715356,1732071035398,-330.0,0.00022091,2]
[342715357,1732071035407,-150.7834883,0.00022191,7]
[342715358,1732071035416,-500.0,0.00022191,7]
[342715359,1732071035426,-500.0,0.00022191,7]
[342715360,1732071035435,-355.08127421,0.00022191,7]
[342715361,1732071035444,-500.0,0.00022191,7]
[342715362,1732071035454,-500.0,0.00022191,7]
[342715363,1732071035464,-500.0,0.00022191,7]
[342715364,1732071035474,-500.0,0.00022191,7]
[342715365,1732071035483,-500.0,0.00022191,7]
[342715366,1732071035493,-1000.0,0.00022191,2]
[342715367,1732071035502,-500.0,0.00022191,7]
[342715368,1732071035511,-500.0,0.00022191,7]
[342715369,1732071035521,-500.0,0.00022191,7]
[342715370,1732071035530,-500.0,0.00022191,7]
[342715371,1732071035539,-516.64353794,0.00022191,7]
[342715372,1732071035549,-504.66707863,0.00022191,7]
[342715373,1732071035558,-500.0,0.00022191,7]
[342715374,1732071035568,-500.0,0.00022191,7]
[342715375,1732071035578,-500.0,0.00022191,7]
[342715376,1732071035588,-500.0,0.00022191,7]
[342715377,1732071035598,-500.0,0.00022191,7]
[342715378,1732071035607,-302.10120406,0.00022191,7]
[342715379,1732071035616,-509.65303409,0.00022191,7]
[342715380,1732071035625,-500.0,0.00022191,7]
[342715381,1732071035634,-257.72805816,0.00022191,7]
[342715382,1732071035644,-500.0,0.00022191,7]
[342715383,1732071035654,-500.0,0.00022191,7]
[342715384,1732071035663,-500.0,0.00022191,7]
[342715385,1732071035672,-500.0,0.00022191,7]
[342715386,1732071035682,-500.0,0.00022191,7]
[342715387,1732071035692,-500.0,0.00022191,7]
[342715388,1732071035701,-500.0,0.00022191,7]
[342715389,1732071035710,-500.0,0.00022191,7]
[342715390,1732071035720,-500.0,0.00022191,7]
[342715391,1732071035729,-159.38094917,0.00022191,7]
[342715392,1732071035739,-500.0,0.00022191,7]
[342715393,1732071035749,-500.0,0.00022191,7]
[342715394,1732071035758,-500.0,0.00022191,7]
[342715395,1732071035767,-500.0,0.00022191,7]
[342715396,1732071035776,-522.18883861,0.00022191,7]
[342715397,1732071035784,-500.0,0.00022191,7]
[342715398,1732071035793,-500.0,0.00022191,7]
[342715399,1732071035900,-500.0,0.00022191,7]
[342715400,1732071035911,-164.21252034,0.00022191,7]
[342715401,1732071035921,-1061.15,0.00022191,7]
[342715402,1732071035932,-500.0,0.00022191,7]
[342715403,1732071035942,-500.0,0.00022191,7]
[342715404,1732071035951,-500.0,0.00022191,7]
[342715405,1732071035961,-500.0,0.00022191,7]
[342715406,1732071035975,-507.16386658,0.00022191,7]
[342715407,1732071035985,-500.0,0.00022191,7]
[342715408,1732071035995,-500.0,0.00022191,7]
[342715409,1732071036004,-500.0,0.00022191,7]
[342715410,1732071036016,-500.0,0.00022191,7]
[342715411,1732071036026,-500.0,0.00022191,7]
[342715412,1732071036035,-500.0,0.00022191,7]
[342715413,1732071036046,-500.0,0.00022191,7]
[342715414,1732071036056,-500.0,0.00022191,7]
[342715415,1732071036066,-500.0,0.00022191,7]
[342715416,1732071036079,-500.0,0.00022191,7]
[342715417,1732071036088,-577.45,0.00022191,7]
[342715418,1732071036097,-500.0,0.00022191,7]
[342715419,1732071036107,-500.0,0.00022191,7]
[342715420,1732071036116,-500.0,0.00022191,7]
[342715421,1732071036125,-538.46144473,0.00022191,7]
[342715422,1732071036135,-500.0,0.00022191,7]
[342715423,1732071036145,-500.0,0.00022191,7]
[342715424,1732071036153,-500.0,0.00022191,7]
[342715425,1732071036163,-500.0,0.00022191,7]
[342715426,1732071036172,-500.0,0.00022191,7]
[342715427,1732071036182,-500.0,0.00022191,7]
[342715428,1732071036192,-500.0,0.00022191,7]
[342715429,1732071036202,-500.0,0.00022191,7]
[342715430,1732071036212,-500.0,0.00022191,7]
[342715431,1732071036222,-500.0,0.00022191,7]
[342715432,1732071036231,-584.43444287,0.00022191,7]
[342715433,1732071036241,-500.0,0.00022191,7]
[342715434,1732071036250,-500.0,0.00022191,7]
[342715435,1732071036259,-500.0,0.00022191,7]
[342715436,1732071036268,-500.0,0.00022191,7]
[342715437,1732071036277,-500.0,0.00022191,7]
[342715438,1732071036287,-500.0,0.00022191,7]
[342715439,1732071036296,-500.0,0.00022191,7]
[342715440,1732071036304,-503.25069379,0.00022191,7]
[342715441,1732071036314,-500.0,0.00022191,7]
[342715442,1732071036324,-500.0,0.00022191,7]
[342715443,1732071036338,-152.0978712,0.00022191,7]
[342715444,1732071036347,-500.0,0.00022191,7]
[342715445,1732071036357,-500.0,0.00022191,7]
[342715446,1732071036366,-500.0,0.00022191,7]
[342715447,1732071036376,-500.0,0.00022191,7]
[342715448,1732071036386,-500.0,0.00022191,7]
[342715449,1732071036395,-500.0,0.00022191,7]
[342715450,1732071036404,-566.05973788,0.00022191,7]
[342715451,1732071036414,-500.0,0.00022191,7]
[342715452,1732071036423,-500.0,0.00022191,7]
[342715453,1732071036433,-2512.49,0.00022191,7]
[342715454,1732071036442,-525.1779813,0.00022191,7]
[342715455,1732071036451,-2418.82,0.00022191,7]
[342715456,1732071036461,-350.45807058,0.00022191,7]
[342715457,1732071036470,-314.18137952,0.00022191,7]
[342715458,1732071036479,-500.0,0.00022191,7]
[342715459,1732071036489,-500.0,0.00022191,7]
[342715460,1732071036498,-255.0,0.00022192,2]
[342715461,1732071036508,-151.286,0.00022395,2]
[342715462,1732071036517,-1147.588,0.00022395,2]
[342715463,1732071036526,-531.706,0.00022395,2]
[342715464,1732071036535,-2383.0,0.00022395,2]
[342715465,1732071036545,-150.14,0.00022395,2]
[342715466,1732071036554,-150.24082456,0.00022465,7]
[342715467,1732071036564,-150.8111631,0.00022465,7]
[342715468,1732071036575,-203.57621002,0.00022465,7]
[342715469,1732071036584,-202.61181309,0.00022465,7]
[342715470,1732071036594,-500.0,0.00022465,7]
[342715471,1732071036603,-500.0,0.00022465,7]
[342715472,1732071036612,-500.0,0.00022465,7]
[342715473,1732071036621,-500.0,0.00022465,7]
[342715474,1732071036631,-500.0,0.00022465,7]
[342715475,1732071036640,-500.0,0.00022465,7]
[342715476,1732071036649,-252.32091112,0.00022465,7]
[342715477,1732071036659,-365.28928616,0.00022465,2]
[342715478,1732071036668,-522.26864155,0.00022465,7]
[342715479,1732071036677,-500.0,0.00022465,7]
[342715480,1732071036687,-500.0,0.00022465,7]
[342715481,1732071036696,-500.0,0.00022465,7]
[342715482,1732071036706,-500.0,0.00022465,7]
[342715483,1732071036715,-224.97048165,0.00022465,7]
[342715484,1732071036725,-500.0,0.00022465,7]
[342715485,1732071036734,-500.0,0.00022465,7]
[342715486,1732071036743,-517.9121904,0.00022465,7]
[342715487,1732071036753,-503.41694126,0.00022465,7]
[342715488,1732071036762,-500.0,0.00022465,7]
[342715489,1732071036772,-500.0,0.00022465,7]
[342715490,1732071036781,-500.0,0.00022465,7]
[342715491,1732071036790,-500.0,0.00022465,7]
[342715492,1732071036799,-500.0,0.00022465,7]
[342715493,1732071036809,-500.0,0.00022465,7]
[342715494,1732071036818,-508.54380761,0.00022465,7]
[342715495,1732071036828,-526.46924303,0.00022465,7]
[342715496,1732071036837,-500.0,0.00022465,7]
[342715497,1732071036847,-500.0,0.00022465,7]
[342715498,1732071036856,-500.0,0.00022465,7]
[342715499,1732071036865,-500.0,0.00022465,7]
[342715500,1732071036874,-500.0,0.00022465,7]
[342715501,1732071036883,-158.56570144,0.00022465,7]
[342715502,1732071036892,-500.0,0.00022465,7]
[342715503,1732071036902,-508.12424845,0.00022465,7]
[342715504,1732071036912,-1061.15,0.00022465,7]
[342715505,1732071036922,-596.00272042,0.00022465,7]